[Event "Early-Titled-Tuesday-Blitz-March-26-2024"]
[Site "Chess.com"]
[Date "2024.03.26"]
[Round "3"]
[White "Sammed_Shete"]
[Black "Angry_Twin"]
[Result "1-0"]
[WhiteElo "2747"]
[BlackElo "2905"]
[TimeControl "180+1"]
[EndTime "8:28:28 PDT"]
[Termination "Sammed_Shete won by resignation"]

1. d4 {[%clk 0:03:00.7]} 1... Nf6 {[%clk 0:03:00]} 2. Nf3 {[%clk 0:02:59.4]}
2... d5 {[%clk 0:03:00.1]} 3. c4 {[%clk 0:02:59.3]} 3... e6 {[%clk 0:03:00.7]}
4. Nc3 {[%clk 0:02:58.6]} 4... c6 {[%clk 0:03:01.2]} 5. e3 {[%clk 0:02:57.7]}
5... Nbd7 {[%clk 0:03:01.4]} 6. b3 {[%clk 0:02:55.3]} 6... Bd6 {[%clk
0:02:54.9]} 7. Be2 {[%clk 0:02:51.3]} 7... O-O {[%clk 0:02:53.8]} 8. O-O {[%clk
0:02:51.8]} 8... b6 {[%clk 0:02:53.8]} 9. Bb2 {[%clk 0:02:50]} 9... Bb7 {[%clk
0:02:53.9]} 10. Re1 {[%clk 0:02:47.8]} 10... Re8 {[%clk 0:02:53.5]} 11. Qc2
{[%clk 0:02:40.4]} 11... Qe7 {[%clk 0:02:51.3]} 12. Bd3 {[%clk 0:02:36.1]} 12...
c5 {[%clk 0:02:36.8]} 13. cxd5 {[%clk 0:02:33.5]} 13... exd5 {[%clk 0:02:37.7]}
14. Nb5 {[%clk 0:02:31.6]} 14... Bb8 {[%clk 0:02:36.5]} 15. dxc5 {[%clk
0:02:31.6]} 15... bxc5 {[%clk 0:02:35.9]} 16. Bf5 {[%clk 0:02:24.1]} 16... a6
{[%clk 0:02:24.7]} 17. Nc3 {[%clk 0:02:22.1]} 17... g6 {[%clk 0:02:23.8]} 18.
Bh3 {[%clk 0:02:21.5]} 18... Nb6 {[%clk 0:02:23.9]} 19. Ne2 {[%clk 0:02:07.7]}
19... Ne4 {[%clk 0:02:01.5]} 20. Ng3 {[%clk 0:02:04.7]} 20... f6 {[%clk
0:01:59.7]} 21. Nxe4 {[%clk 0:01:58.2]} 21... dxe4 {[%clk 0:01:58.8]} 22. Nd2
{[%clk 0:01:57]} 22... f5 {[%clk 0:01:55.7]} 23. Rac1 {[%clk 0:01:56]} 23... Bd6
{[%clk 0:01:55.6]} 24. Nc4 {[%clk 0:01:45.8]} 24... Nxc4 {[%clk 0:01:53.1]} 25.
Qxc4+ {[%clk 0:01:46.7]} 25... Qf7 {[%clk 0:01:52.5]} 26. Qc2 {[%clk 0:01:36.5]}
26... Rac8 {[%clk 0:01:48.6]} 27. Red1 {[%clk 0:01:29]} 27... Be5 {[%clk
0:01:23.4]} 28. Bxe5 {[%clk 0:01:26.6]} 28... Rxe5 {[%clk 0:01:24.3]} 29. g3
{[%clk 0:01:27.5]} 29... Re7 {[%clk 0:01:15.8]} 30. Bf1 {[%clk 0:01:26.7]} 30...
Qf6 {[%clk 0:01:15.7]} 31. Rd2 {[%clk 0:01:20.1]} 31... Kg7 {[%clk 0:01:11]} 32.
Rcd1 {[%clk 0:01:20.3]} 32... Qe5 {[%clk 0:01:03.4]} 33. Bc4 {[%clk 0:01:11.3]}
33... g5 {[%clk 0:00:54.9]} 34. Rd7 {[%clk 0:01:06.2]} 34... Rc7 {[%clk
0:00:34.8]} 35. Rd8 {[%clk 0:00:56.5]} 35... Rc8 {[%clk 0:00:32]} 36. R8d6
{[%clk 0:00:48]} 36... f4 {[%clk 0:00:27.5]} 37. Qe2 {[%clk 0:00:44.3]} 37... f3
{[%clk 0:00:22.7]} 38. Qf1 {[%clk 0:00:44.5]} 38... g4 {[%clk 0:00:22.3]} 39. h4
{[%clk 0:00:40]} 39... a5 {[%clk 0:00:18.9]} 40. Qe1 {[%clk 0:00:38.6]} 40... a4
{[%clk 0:00:19.2]} 41. bxa4 {[%clk 0:00:31.6]} 41... Ra8 {[%clk 0:00:19.5]} 42.
a5 {[%clk 0:00:31.8]} 42... h5 {[%clk 0:00:10.4]} 43. a6 {[%clk 0:00:31.3]}
43... Bc8 {[%clk 0:00:10.7]} 44. R1d5 {[%clk 0:00:27.8]} 44... Qb2 {[%clk
0:00:10.8]} 45. Rg5+ {[%clk 0:00:27.7]} 45... Kh7 {[%clk 0:00:11.3]} 46. Rxh5+
{[%clk 0:00:27.1]} 46... Kg7 {[%clk 0:00:11.7]} 47. Rg5+ {[%clk 0:00:27.6]}
47... Kh7 {[%clk 0:00:12.2]} 48. Bg8+ {[%clk 0:00:27.9]} 1-0

[Event "Early-Titled-Tuesday-Blitz-March-26-2024"]
[Site "Chess.com"]
[Date "2024.03.26"]
[Round "3"]
[White "AA95"]
[Black "manitodeplomo"]
[Result "1/2-1/2"]
[WhiteElo "2474"]
[BlackElo "2669"]
[TimeControl "180+1"]
[EndTime "8:28:29 PDT"]
[Termination "Game drawn - insufficient material"]

1. Nf3 {[%clk 0:03:00.9]} 1... Nf6 {[%clk 0:02:53]} 2. g3 {[%clk 0:03:01.3]}
2... d6 {[%clk 0:02:52.6]} 3. Bg2 {[%clk 0:03:01.7]} 3... h6 {[%clk 0:02:53]} 4.
d4 {[%clk 0:03:00.7]} 4... Bf5 {[%clk 0:02:53.2]} 5. c4 {[%clk 0:02:59.7]} 5...
Bh7 {[%clk 0:02:52.1]} 6. Qb3 {[%clk 0:02:59.1]} 6... Qc8 {[%clk 0:02:51.6]} 7.
Ng5 {[%clk 0:02:52.8]} 7... c6 {[%clk 0:02:46.6]} 8. Nxh7 {[%clk 0:02:52.3]}
8... Nxh7 {[%clk 0:02:46.9]} 9. Nc3 {[%clk 0:02:51.6]} 9... Nf6 {[%clk
0:02:47.1]} 10. O-O {[%clk 0:02:50.7]} 10... Nbd7 {[%clk 0:02:46.3]} 11. Bf4
{[%clk 0:02:43]} 11... e5 {[%clk 0:02:46]} 12. Be3 {[%clk 0:02:39.4]} 12... Ng4
{[%clk 0:02:41.5]} 13. Rad1 {[%clk 0:02:21.8]} 13... Be7 {[%clk 0:02:39.7]} 14.
c5 {[%clk 0:02:08.8]} 14... Nxe3 {[%clk 0:02:30.2]} 15. fxe3 {[%clk 0:02:08.2]}
15... O-O {[%clk 0:02:29]} 16. cxd6 {[%clk 0:02:03.1]} 16... Bxd6 {[%clk
0:02:22.9]} 17. dxe5 {[%clk 0:01:59.2]} 17... Nc5 {[%clk 0:02:16.8]} 18. Qc4
{[%clk 0:01:43.7]} 18... Be7 {[%clk 0:02:15.1]} 19. Ne4 {[%clk 0:01:08.2]} 19...
Qe6 {[%clk 0:01:49.9]} 20. Qxe6 {[%clk 0:01:01.5]} 20... Nxe6 {[%clk 0:01:49.2]}
21. Bh3 {[%clk 0:00:55.9]} 21... Ng5 {[%clk 0:01:46.8]} 22. Nxg5 {[%clk
0:00:50.3]} 22... Bxg5 {[%clk 0:01:47.7]} 23. Rd7 {[%clk 0:00:49.2]} 23... Bxe3+
{[%clk 0:01:37.6]} 24. Kg2 {[%clk 0:00:49.4]} 24... Rae8 {[%clk 0:01:31.4]} 25.
e6 {[%clk 0:00:30.7]} 25... fxe6 {[%clk 0:01:26.6]} 26. Rxf8+ {[%clk 0:00:30.5]}
26... Kxf8 {[%clk 0:01:25]} 27. Rxb7 {[%clk 0:00:30.7]} 27... Bb6 {[%clk
0:01:23.1]} 28. Kf3 {[%clk 0:00:27.4]} 28... Re7 {[%clk 0:01:23.1]} 29. Rb8+
{[%clk 0:00:27.2]} 29... Re8 {[%clk 0:01:23.2]} 30. Rb7 {[%clk 0:00:26.6]} 30...
Re7 {[%clk 0:01:23.2]} 31. Rb8+ {[%clk 0:00:26.7]} 31... Re8 {[%clk 0:01:23.2]}
32. Rxe8+ {[%clk 0:00:26.6]} 32... Kxe8 {[%clk 0:01:22.2]} 33. Bxe6 {[%clk
0:00:27.2]} 33... Ke7 {[%clk 0:01:21.2]} 34. Bc4 {[%clk 0:00:26.4]} 34... Kf6
{[%clk 0:01:18.1]} 35. Ke4 {[%clk 0:00:25.6]} 35... h5 {[%clk 0:01:16.1]} 36.
Ba6 {[%clk 0:00:24.6]} 36... Bg1 {[%clk 0:01:08.7]} 37. Bb7 {[%clk 0:00:21.4]}
37... Bxh2 {[%clk 0:01:06]} 38. Kf3 {[%clk 0:00:21.5]} 38... h4 {[%clk
0:00:58.1]} 39. gxh4 {[%clk 0:00:21.1]} 39... c5 {[%clk 0:00:57.5]} 40. Ke4
{[%clk 0:00:18.8]} 40... g6 {[%clk 0:00:51.7]} 41. Kd5 {[%clk 0:00:18.5]} 41...
Bg3 {[%clk 0:00:46.5]} 42. Kxc5 {[%clk 0:00:18.1]} 42... Bxh4 {[%clk 0:00:46.1]}
43. Bc8 {[%clk 0:00:18.2]} 43... Ke5 {[%clk 0:00:44]} 44. b4 {[%clk 0:00:17]}
44... Be7+ {[%clk 0:00:39.9]} 45. Kb5 {[%clk 0:00:16.7]} 45... Kf4 {[%clk
0:00:38.3]} 46. a4 {[%clk 0:00:16.2]} 46... g5 {[%clk 0:00:37.3]} 47. a5 {[%clk
0:00:14.9]} 47... g4 {[%clk 0:00:36.9]} 48. e3+ {[%clk 0:00:14.4]} 48... Kf3
{[%clk 0:00:36.3]} 49. Bxg4+ {[%clk 0:00:09.8]} 49... Kxg4 {[%clk 0:00:36.2]}
50. Ka6 {[%clk 0:00:08.7]} 50... Bxb4 {[%clk 0:00:33.3]} 51. Kxa7 {[%clk
0:00:09.1]} 51... Bxa5 {[%clk 0:00:32.5]} 52. e4 {[%clk 0:00:09.7]} 52... Bc3
{[%clk 0:00:32.2]} 53. e5 {[%clk 0:00:10.6]} 53... Kf5 {[%clk 0:00:30.8]} 54. e6
{[%clk 0:00:10.9]} 54... Kxe6 {[%clk 0:00:30.5]} 1/2-1/2

[Event "Early-Titled-Tuesday-Blitz-March-26-2024"]
[Site "Chess.com"]
[Date "2024.03.26"]
[Round "3"]
[White "SirStrateg"]
[Black "alexrustemov"]
[Result "1/2-1/2"]
[WhiteElo "2622"]
[BlackElo "2937"]
[TimeControl "180+1"]
[EndTime "8:28:31 PDT"]
[Termination "Game drawn by repetition"]

1. d4 {[%clk 0:02:59.7]} 1... d5 {[%clk 0:02:59.5]} 2. Bf4 {[%clk 0:02:59.7]}
2... Nf6 {[%clk 0:02:59.2]} 3. e3 {[%clk 0:03:00.3]} 3... c5 {[%clk 0:02:59.4]}
4. c3 {[%clk 0:03:00.8]} 4... Nc6 {[%clk 0:02:59.6]} 5. Nd2 {[%clk 0:03:01.2]}
5... Bg4 {[%clk 0:02:59.1]} 6. Ngf3 {[%clk 0:03:00.7]} 6... e6 {[%clk 0:02:59]}
7. h3 {[%clk 0:03:01.1]} 7... Bxf3 {[%clk 0:02:54]} 8. Nxf3 {[%clk 0:03:01.1]}
8... Bd6 {[%clk 0:02:51.2]} 9. Bxd6 {[%clk 0:02:34.8]} 9... Qxd6 {[%clk
0:02:52.1]} 10. Qa4 {[%clk 0:02:35.1]} 10... O-O {[%clk 0:02:48.8]} 11. Qa3
{[%clk 0:02:31.2]} 11... Ne4 {[%clk 0:02:34.2]} 12. Bd3 {[%clk 0:02:26.6]} 12...
cxd4 {[%clk 0:02:33.8]} 13. Qxd6 {[%clk 0:02:25.5]} 13... Nxd6 {[%clk
0:02:34.4]} 14. exd4 {[%clk 0:02:24.1]} 14... b5 {[%clk 0:02:31]} 15. Kd2 {[%clk
0:02:23.1]} 15... a5 {[%clk 0:02:30.3]} 16. b3 {[%clk 0:02:19.3]} 16... Rfc8
{[%clk 0:02:24.4]} 17. Ne5 {[%clk 0:02:15.7]} 17... b4 {[%clk 0:02:20.1]} 18.
Nxc6 {[%clk 0:02:13.3]} 18... Rxc6 {[%clk 0:02:09.4]} 19. cxb4 {[%clk
0:01:39.1]} 19... axb4 {[%clk 0:02:08.7]} 20. Rhc1 {[%clk 0:01:39.8]} 20... Rxc1
{[%clk 0:02:01.1]} 21. Kxc1 {[%clk 0:01:35.3]} 21... g5 {[%clk 0:01:44.3]} 22.
Kb2 {[%clk 0:01:33.6]} 22... Kg7 {[%clk 0:01:30.6]} 23. a4 {[%clk 0:01:24]}
23... bxa3+ {[%clk 0:01:30.2]} 24. Rxa3 {[%clk 0:01:24.1]} 24... Rb8 {[%clk
0:01:30.6]} 25. Ra5 {[%clk 0:00:59.8]} 25... h5 {[%clk 0:01:25.8]} 26. Kc3
{[%clk 0:00:59.4]} 26... g4 {[%clk 0:01:18.5]} 27. hxg4 {[%clk 0:00:53.9]} 27...
hxg4 {[%clk 0:01:19.4]} 28. b4 {[%clk 0:00:53.9]} 28... Rc8+ {[%clk 0:01:17.4]}
29. Rc5 {[%clk 0:00:53.8]} 29... Ra8 {[%clk 0:01:17]} 30. Ra5 {[%clk 0:00:54]}
30... Rc8+ {[%clk 0:01:07.4]} 31. Rc5 {[%clk 0:00:54]} 31... Rb8 {[%clk
0:01:05.8]} 32. b5 {[%clk 0:00:50.1]} 32... Kf6 {[%clk 0:00:58.4]} 33. Kb4
{[%clk 0:00:50.5]} 33... Nf5 {[%clk 0:00:45.6]} 34. Bxf5 {[%clk 0:00:35.5]}
34... Kxf5 {[%clk 0:00:46.5]} 35. Rc7 {[%clk 0:00:35.9]} 35... f6 {[%clk
0:00:44.6]} 36. Kc5 {[%clk 0:00:34]} 36... e5 {[%clk 0:00:38.1]} 37. dxe5 {[%clk
0:00:32]} 37... fxe5 {[%clk 0:00:38.8]} 38. b6 {[%clk 0:00:31.9]} 38... d4
{[%clk 0:00:37.4]} 39. Kc6 {[%clk 0:00:16.1]} 39... d3 {[%clk 0:00:34.9]} 40.
Rd7 {[%clk 0:00:13.8]} 40... Ke4 {[%clk 0:00:26.4]} 41. g3 {[%clk 0:00:10.5]}
41... Kf3 {[%clk 0:00:25.9]} 42. Rxd3+ {[%clk 0:00:10.4]} 42... Kxf2 {[%clk
0:00:26.1]} 43. Kc7 {[%clk 0:00:09.2]} 43... Rg8 {[%clk 0:00:23.2]} 44. b7
{[%clk 0:00:08.9]} 44... e4 {[%clk 0:00:22.7]} 45. Rd8 {[%clk 0:00:08.2]} 45...
Rg7+ {[%clk 0:00:22.3]} 46. Rd7 {[%clk 0:00:08.8]} 46... Rg8 {[%clk 0:00:19.6]}
47. Rd8 {[%clk 0:00:09.1]} 47... Rg7+ {[%clk 0:00:19.5]} 48. Rd7 {[%clk
0:00:09.7]} 48... Rg8 {[%clk 0:00:19.7]} 49. Rd8 {[%clk 0:00:10.3]} 1/2-1/2

[Event "Early-Titled-Tuesday-Blitz-March-26-2024"]
[Site "Chess.com"]
[Date "2024.03.26"]
[Round "3"]
[White "PierrotFace"]
[Black "Gabrielian_Artur"]
[Result "0-1"]
[WhiteElo "2508"]
[BlackElo "2790"]
[TimeControl "180+1"]
[EndTime "8:28:31 PDT"]
[Termination "Gabrielian_Artur won by checkmate"]

1. e4 {[%clk 0:03:00.9]} 1... e5 {[%clk 0:02:58.5]} 2. Nf3 {[%clk 0:03:01.4]}
2... Nc6 {[%clk 0:02:57.6]} 3. c3 {[%clk 0:03:02.1]} 3... Nf6 {[%clk 0:02:55.8]}
4. d4 {[%clk 0:03:01.4]} 4... d6 {[%clk 0:02:56]} 5. dxe5 {[%clk 0:03:01.2]}
5... Nxe5 {[%clk 0:02:55.1]} 6. Nxe5 {[%clk 0:03:00.6]} 6... dxe5 {[%clk
0:02:55.4]} 7. Qxd8+ {[%clk 0:03:01.1]} 7... Kxd8 {[%clk 0:02:55.8]} 8. Bg5
{[%clk 0:03:01.5]} 8... Be7 {[%clk 0:02:53.1]} 9. Nd2 {[%clk 0:03:01.4]} 9...
Nd7 {[%clk 0:02:52.3]} 10. Bxe7+ {[%clk 0:03:01]} 10... Kxe7 {[%clk 0:02:52.3]}
11. O-O-O {[%clk 0:03:00.9]} 11... f6 {[%clk 0:02:50.4]} 12. g3 {[%clk
0:03:00.6]} 12... a5 {[%clk 0:02:49.6]} 13. f4 {[%clk 0:02:54.4]} 13... Nc5
{[%clk 0:02:47.7]} 14. h3 {[%clk 0:02:43.9]} 14... Rd8 {[%clk 0:02:46.1]} 15.
Kc2 {[%clk 0:02:30]} 15... Be6 {[%clk 0:02:43.8]} 16. b3 {[%clk 0:01:44.5]}
16... a4 {[%clk 0:02:28.5]} 17. b4 {[%clk 0:01:28.8]} 17... Bxa2 {[%clk
0:02:23.1]} 18. Bc4 {[%clk 0:00:50.4]} 18... Bxc4 {[%clk 0:01:41]} 19. Nxc4
{[%clk 0:00:51.3]} 19... Rxd1 {[%clk 0:01:36.4]} 20. Rxd1 {[%clk 0:00:52.2]}
20... Nxe4 {[%clk 0:01:36.4]} 21. fxe5 {[%clk 0:00:49.8]} 21... Nxg3 {[%clk
0:01:29.2]} 22. exf6+ {[%clk 0:00:46.1]} 22... Kxf6 {[%clk 0:01:23.4]} 23. Rd7
{[%clk 0:00:22.4]} 23... Rc8 {[%clk 0:01:22.6]} 24. Ne3 {[%clk 0:00:18.3]} 24...
Kg6 {[%clk 0:01:05.8]} 25. Nd5 {[%clk 0:00:17.6]} 25... Nf5 {[%clk 0:01:03.3]}
26. Nxc7 {[%clk 0:00:13]} 26... Kh5 {[%clk 0:00:42.2]} 27. Nd5 {[%clk 0:00:11]}
27... b5 {[%clk 0:00:37.7]} 28. Rf7 {[%clk 0:00:09.7]} 28... Nd4+ {[%clk
0:00:34]} 29. Kb2 {[%clk 0:00:09.4]} 29... Ne6 {[%clk 0:00:33.9]} 30. Re7 {[%clk
0:00:08.8]} 30... Ng5 {[%clk 0:00:23.6]} 31. Rxg7 {[%clk 0:00:07.5]} 31... h6
{[%clk 0:00:23.9]} 32. Nf6+ {[%clk 0:00:07.3]} 32... Kh4 {[%clk 0:00:24.1]} 33.
Rg6 {[%clk 0:00:07.9]} 33... Rh8 {[%clk 0:00:23.2]} 34. Ng4 {[%clk 0:00:08.4]}
34... h5 {[%clk 0:00:22]} 35. Rh6 {[%clk 0:00:09.1]} 35... Rxh6 {[%clk
0:00:20.9]} 36. Nxh6 {[%clk 0:00:10]} 36... Kxh3 {[%clk 0:00:16.8]} 37. Nf5
{[%clk 0:00:10.4]} 37... Kg4 {[%clk 0:00:16.5]} 38. c4 {[%clk 0:00:10.5]} 38...
Kxf5 {[%clk 0:00:16.3]} 39. cxb5 {[%clk 0:00:10.1]} 39... Ne4 {[%clk 0:00:16.4]}
40. Ka3 {[%clk 0:00:08.9]} 40... Nd6 {[%clk 0:00:16.6]} 41. Kxa4 {[%clk
0:00:08.2]} 41... h4 {[%clk 0:00:17]} 42. b6 {[%clk 0:00:08.9]} 42... h3 {[%clk
0:00:17.5]} 43. b7 {[%clk 0:00:06.9]} 43... Nxb7 {[%clk 0:00:17]} 44. Kb5 {[%clk
0:00:07.6]} 44... h2 {[%clk 0:00:16.9]} 45. Kb6 {[%clk 0:00:08.5]} 45... h1=Q
{[%clk 0:00:17.3]} 46. b5 {[%clk 0:00:09.1]} 46... Qd5 {[%clk 0:00:17]} 47. Ka7
{[%clk 0:00:09.6]} 47... Qxb5 {[%clk 0:00:17.2]} 48. Ka8 {[%clk 0:00:10.3]}
48... Nc5 {[%clk 0:00:17.1]} 49. Ka7 {[%clk 0:00:10.6]} 49... Qb7# {[%clk
0:00:17.3]} 0-1

[Event "Early-Titled-Tuesday-Blitz-March-26-2024"]
[Site "Chess.com"]
[Date "2024.03.26"]
[Round "3"]
[White "Zampronha1971"]
[Black "stratacticos"]
[Result "1/2-1/2"]
[WhiteElo "2342"]
[BlackElo "1865"]
[TimeControl "180+1"]
[EndTime "8:28:36 PDT"]
[Termination "Game drawn by repetition"]

1. e4 {[%clk 0:03:00.9]} 1... c5 {[%clk 0:02:59.2]} 2. Nf3 {[%clk 0:03:00.6]}
2... Nc6 {[%clk 0:02:58.5]} 3. d4 {[%clk 0:03:01.2]} 3... cxd4 {[%clk
0:02:58.1]} 4. Nxd4 {[%clk 0:03:02.1]} 4... e5 {[%clk 0:02:58.3]} 5. Nb5 {[%clk
0:03:01.6]} 5... d6 {[%clk 0:02:57.8]} 6. N1c3 {[%clk 0:03:00.6]} 6... a6 {[%clk
0:02:57.4]} 7. Na3 {[%clk 0:03:01.1]} 7... b5 {[%clk 0:02:58.3]} 8. Nd5 {[%clk
0:03:01.4]} 8... Nce7 {[%clk 0:02:58.1]} 9. c4 {[%clk 0:03:00.8]} 9... Nxd5
{[%clk 0:02:57.2]} 10. cxd5 {[%clk 0:03:00.8]} 10... Be7 {[%clk 0:02:54.1]} 11.
Bd3 {[%clk 0:02:58.2]} 11... Bg5 {[%clk 0:02:51.1]} 12. O-O {[%clk 0:02:49.7]}
12... Bxc1 {[%clk 0:02:49.7]} 13. Rxc1 {[%clk 0:02:49.5]} 13... Qg5 {[%clk
0:02:49]} 14. Rc6 {[%clk 0:01:58]} 14... Nf6 {[%clk 0:02:16.4]} 15. Rxd6 {[%clk
0:01:29.4]} 15... Bh3 {[%clk 0:02:13.8]} 16. Qf3 {[%clk 0:01:28.8]} 16... Bg4
{[%clk 0:02:12.6]} 17. Qe3 {[%clk 0:01:26.8]} 17... Qg6 {[%clk 0:01:44.6]} 18.
Qg3 {[%clk 0:01:24.7]} 18... O-O {[%clk 0:01:41.4]} 19. f3 {[%clk 0:01:22.2]}
19... Bh5 {[%clk 0:01:00.4]} 20. Qxg6 {[%clk 0:01:22.2]} 20... Bxg6 {[%clk
0:00:58.5]} 21. Rc1 {[%clk 0:01:19.6]} 21... b4 {[%clk 0:00:51.7]} 22. Nc4
{[%clk 0:01:15]} 22... Rac8 {[%clk 0:00:50.8]} 23. Rxa6 {[%clk 0:01:10.5]} 23...
Nxd5 {[%clk 0:00:48.3]} 24. Rxg6 {[%clk 0:00:52.3]} 24... hxg6 {[%clk
0:00:37.9]} 25. exd5 {[%clk 0:00:51.6]} 25... Rfd8 {[%clk 0:00:34.3]} 26. Re1
{[%clk 0:00:26.4]} 26... Rxd5 {[%clk 0:00:31.5]} 27. Nb6 {[%clk 0:00:23.7]}
27... Rxd3 {[%clk 0:00:28.4]} 28. Nxc8 {[%clk 0:00:24.2]} 28... Rd2 {[%clk
0:00:28.4]} 29. Rxe5 {[%clk 0:00:20]} 29... Rxb2 {[%clk 0:00:28]} 30. Ra5 {[%clk
0:00:20.7]} 30... b3 {[%clk 0:00:25.6]} 31. axb3 {[%clk 0:00:20]} 31... Rxb3
{[%clk 0:00:25.3]} 32. Na7 {[%clk 0:00:20]} 32... Rb2 {[%clk 0:00:20.7]} 33. h3
{[%clk 0:00:20.2]} 33... f6 {[%clk 0:00:16.8]} 34. Kh2 {[%clk 0:00:20.5]} 34...
g5 {[%clk 0:00:16.6]} 35. Nc6 {[%clk 0:00:20.4]} 35... Kh7 {[%clk 0:00:16.1]}
36. Nd4 {[%clk 0:00:19.9]} 36... Kg6 {[%clk 0:00:15.7]} 37. Nf5 {[%clk
0:00:19.5]} 37... Re2 {[%clk 0:00:10.3]} 38. Kg3 {[%clk 0:00:17.8]} 38... Re5
{[%clk 0:00:08.5]} 39. Nd4 {[%clk 0:00:17.1]} 39... Rxa5 {[%clk 0:00:07.5]} 40.
Ne2 {[%clk 0:00:13.8]} 40... Ra4 {[%clk 0:00:08.2]} 41. Kf2 {[%clk 0:00:13.7]}
41... f5 {[%clk 0:00:08.8]} 42. Ke3 {[%clk 0:00:14]} 42... Ra3+ {[%clk
0:00:08.4]} 43. Kf2 {[%clk 0:00:13.9]} 43... Ra2 {[%clk 0:00:08.1]} 44. Ke3
{[%clk 0:00:13.2]} 44... Ra3+ {[%clk 0:00:08.2]} 45. Kf2 {[%clk 0:00:13.5]}
45... Ra2 {[%clk 0:00:08.4]} 46. Ke3 {[%clk 0:00:13.8]} 46... Ra3+ {[%clk
0:00:08.6]} 1/2-1/2

[Event "Early-Titled-Tuesday-Blitz-March-26-2024"]
[Site "Chess.com"]
[Date "2024.03.26"]
[Round "3"]
[White "Onischuk_V"]
[Black "DenLaz"]
[Result "0-1"]
[WhiteElo "2807"]
[BlackElo "3089"]
[TimeControl "180+1"]
[EndTime "8:28:38 PDT"]
[Termination "DenLaz won by resignation"]

1. e4 {[%clk 0:03:00.9]} 1... c5 {[%clk 0:03:00.5]} 2. Nf3 {[%clk 0:02:59.9]}
2... e6 {[%clk 0:03:01.3]} 3. b3 {[%clk 0:02:59.8]} 3... a6 {[%clk 0:02:59.8]}
4. Bb2 {[%clk 0:02:59.1]} 4... Nc6 {[%clk 0:03:00.4]} 5. c4 {[%clk 0:02:54.1]}
5... Nf6 {[%clk 0:02:59.5]} 6. e5 {[%clk 0:02:50.7]} 6... Ng4 {[%clk 0:02:59.5]}
7. h3 {[%clk 0:02:49.7]} 7... Nh6 {[%clk 0:02:59.5]} 8. g4 {[%clk 0:02:47.5]}
8... d6 {[%clk 0:02:56.9]} 9. exd6 {[%clk 0:02:37.6]} 9... Qxd6 {[%clk
0:02:51.2]} 10. Bg2 {[%clk 0:02:37.7]} 10... e5 {[%clk 0:02:46.7]} 11. O-O
{[%clk 0:02:35.2]} 11... Be7 {[%clk 0:02:46.8]} 12. Re1 {[%clk 0:02:32.5]} 12...
f6 {[%clk 0:02:46.8]} 13. Nc3 {[%clk 0:02:28.4]} 13... O-O {[%clk 0:02:46.5]}
14. d3 {[%clk 0:02:00.2]} 14... Nf7 {[%clk 0:02:43.7]} 15. Nd5 {[%clk
0:01:58.1]} 15... Be6 {[%clk 0:02:41.9]} 16. Nd2 {[%clk 0:01:58.1]} 16... Rad8
{[%clk 0:02:27.2]} 17. Ne4 {[%clk 0:01:55.3]} 17... Qd7 {[%clk 0:02:27.4]} 18.
Ba3 {[%clk 0:01:54.8]} 18... Nb4 {[%clk 0:02:17.3]} 19. Bxb4 {[%clk 0:01:39.3]}
19... cxb4 {[%clk 0:02:18.2]} 20. d4 {[%clk 0:01:39.7]} 20... Bxd5 {[%clk
0:02:13.1]} 21. cxd5 {[%clk 0:01:39.8]} 21... f5 {[%clk 0:01:57.3]} 22. Nc5
{[%clk 0:01:29.5]} 22... Bxc5 {[%clk 0:01:42.5]} 23. dxc5 {[%clk 0:01:29.7]}
23... e4 {[%clk 0:01:43]} 24. d6 {[%clk 0:01:29.2]} 24... Ng5 {[%clk 0:01:30.2]}
25. Qd5+ {[%clk 0:01:19.7]} 25... Kh8 {[%clk 0:01:29.1]} 26. Rad1 {[%clk
0:01:19.8]} 26... Rc8 {[%clk 0:01:07.4]} 27. Rc1 {[%clk 0:00:56.2]} 27... g6
{[%clk 0:00:46]} 28. h4 {[%clk 0:00:34.1]} 28... Ne6 {[%clk 0:00:44.8]} 29. gxf5
{[%clk 0:00:34.4]} 29... gxf5 {[%clk 0:00:44.4]} 30. Qe5+ {[%clk 0:00:34.7]}
30... Ng7 {[%clk 0:00:39.6]} 31. Bh3 {[%clk 0:00:33.3]} 31... Rce8 {[%clk
0:00:36.5]} 32. Qd4 {[%clk 0:00:31.4]} 32... Qd8 {[%clk 0:00:35.4]} 33. Re3
{[%clk 0:00:17.2]} 33... Qxh4 {[%clk 0:00:32.7]} 34. Rg3 {[%clk 0:00:17.5]}
34... Qh6 {[%clk 0:00:33.1]} 35. Re1 {[%clk 0:00:16.1]} 35... f4 {[%clk
0:00:27.6]} 36. Rxg7 {[%clk 0:00:15.6]} 36... Qxg7+ {[%clk 0:00:23.8]} 37. Qxg7+
{[%clk 0:00:15.4]} 37... Kxg7 {[%clk 0:00:24.7]} 38. Rd1 {[%clk 0:00:15.5]}
38... Re5 {[%clk 0:00:23.1]} 39. Rc1 {[%clk 0:00:10.5]} 39... e3 {[%clk
0:00:23.4]} 40. Kf1 {[%clk 0:00:09.8]} 40... e2+ {[%clk 0:00:22]} 41. Ke1 {[%clk
0:00:09.3]} 41... f3 {[%clk 0:00:22.7]} 42. d7 {[%clk 0:00:08.7]} 42... Rg5
{[%clk 0:00:21.4]} 43. Kd2 {[%clk 0:00:08.8]} 43... Rd5+ {[%clk 0:00:20.7]} 44.
Ke1 {[%clk 0:00:09.2]} 44... Rd8 {[%clk 0:00:18.8]} 45. Be6 {[%clk 0:00:07]}
45... R5xd7 {[%clk 0:00:18.1]} 46. Bxd7 {[%clk 0:00:06.7]} 46... Rxd7 {[%clk
0:00:19]} 47. Rb1 {[%clk 0:00:04.5]} 47... h5 {[%clk 0:00:19]} 0-1